bitfinex-derivatives/quotes_BNBF0:USTF0_20250315
["timestamp","ask_amount","ask_price","bid_price","bid_amount"]
[1742000440716,0.31062771,592.22,591.01,0.663]
[1742000440918,0.29424572,592.22,591.01,0.663]
[1742000441124,0.31062771,592.21,591.01,0.663]
[1742000442218,0.31062771,592.24,591.01,0.663]
[1742000442523,0.29424945,592.2,591.01,0.663]
[1742000442724,0.31062771,592.19,591.01,0.663]
[1742000442925,0.31066286,592.18,591.01,0.663]
[1742000443127,0.31066286,592.17,591.01,0.663]
[1742000443523,0.31066286,592.16,591.01,0.663]
[1742000443723,0.31066286,592.19,591.01,0.663]
[1742000443924,0.31066286,592.18,591.01,0.663]
[1742000444224,0.31066286,592.17,591.01,0.663]
[1742000444425,0.31066286,592.19,591.01,0.663]
[1742000448222,0.29425692,592.18,591.01,0.663]
[1742000448422,0.31066286,592.17,591.01,0.663]
[1742000448619,0.29425692,592.18,591.02,0.467]
[1742000448826,0.31066081,592.17,591.02,0.467]
[1742000451223,0.29425443,592.16,591.02,0.467]
[1742000451426,0.31066081,592.15,591.02,0.467]
[1742000453828,0.31066081,592.15,591.02,1.254]
[1742000454230,0.33770663,592.23,591.02,1.254]
[1742000454429,0.60491205,592.14,591.02,1.254]
[1742000454631,0.31065638,592.13,591.02,1.254]
[1742000454828,0.31065638,592.22,591.02,1.254]
[1742000455626,0.31065638,592.22,591.02,2.081]
[1742000457132,0.29424696,592.21,591.02,2.081]
[1742000457327,0.31065638,592.2,591.02,2.081]
[1742000459533,0.31065638,592.2,591.02,3.081]
[1742000459733,0.29424696,592.21,591.02,3.081]
[1742000459934,0.31065267,592.19,591.02,3.081]
[1742000460133,0.31065267,592.18,591.02,3.731]
[1742000460328,0.29417359,592.2,591.02,3.731]
[1742000460532,0.31065267,592.19,591.02,3.731]
[1742000463331,0.29417359,592.2,591.02,4.756]
[1742000465938,3.29151644,593.32,591.02,4.756]
[1742000466134,0.3106512,593.31,591.02,4.756]
[1742000466534,7.27220976,593.5,591.02,4.756]
[1742000466735,2.61347366,593.49,591.02,4.756]
[1742000466939,0.31065734,593.48,591.02,4.756]
[1742000467140,0.31065734,593.47,591.02,4.756]
[1742000467340,0.31065734,593.46,591.02,4.756]
[1742000467544,0.31065734,593.45,591.02,4.756]
[1742000467739,0.31065734,593.44,591.02,4.756]
[1742000467941,0.31065734,593.43,591.02,4.756]
[1742000468142,0.29409031,593.44,591.02,4.756]
[1742000468143,0.31065734,593.42,591.02,4.756]
[1742000468344,0.29409031,593.44,591.02,4.756]
[1742000468545,0.31066284,593.43,591.02,4.756]
[1742000468846,0.31066284,593.42,591.02,4.756]
[1742000469047,0.31066284,593.41,591.02,4.756]
[1742000469242,0.31066284,593.4,591.02,4.756]
[1742000469440,0.31066284,593.39,591.02,4.756]
[1742000469640,0.31066284,593.38,591.02,4.756]
[1742000469946,0.31066284,593.37,591.02,4.756]
[1742000470147,0.31066284,593.36,591.02,4.756]
[1742000470348,0.31066284,593.35,591.02,4.756]
[1742000470548,0.31066284,593.34,591.02,4.756]
[1742000470747,0.31066284,593.33,591.02,4.756]
[1742000470945,2.59344213,593.38,591.02,4.756]
[1742000470946,0.31066284,593.32,591.02,4.756]
[1742000471247,0.31066284,593.31,591.02,4.756]
[1742000471447,0.31066284,593.3,591.02,4.756]
[1742000471747,0.31066284,593.29,591.02,4.756]
[1742000471948,0.31066284,593.28,591.02,4.756]
[1742000472145,0.31066284,593.27,591.02,4.756]
[1742000472347,0.31066284,593.26,591.02,4.756]
[1742000472548,0.31066284,593.25,591.02,4.756]
[1742000472749,0.31066284,593.24,591.02,5.741]
[1742000473048,0.31066284,593.23,591.03,0.30612416]
[1742000473245,2.59344213,592.99,591.03,0.30612416]
[1742000473444,0.31066284,592.98,591.03,0.30612416]
[1742000474349,0.31036546,592.97,591.04,0.30590153]
[1742000474548,0.31036546,592.98,591.03,0.30590153]
[1742000474743,0.31036546,592.97,591.04,0.30590153]
[1742000474949,0.31036546,592.98,591.03,0.30590153]
[1742000475149,0.29404806,592.97,591.03,0.30590153]
[1742000475349,0.31036546,592.96,591.03,0.30590153]
[1742000475549,0.31036546,592.95,591.03,0.30590153]
[1742000475747,0.29404806,592.97,591.03,1.17590153]
[1742000475748,0.31036546,592.94,591.03,1.17590153]
[1742000475948,0.31036546,592.94,591.03,3.06890153]
[1742000476146,0.31036546,592.93,591.04,0.30590153]
[1742000476346,0.31036546,592.96,591.04,0.30590153]
[1742000478046,0.29400707,592.95,591.04,0.30590153]
[1742000478252,0.31036546,592.94,591.04,0.30590153]
[1742000480950,0.33731363,592.92,591.06,0.33837512]
[1742000481154,0.31036546,592.91,591.07,0.30590153]
[1742000481354,0.3373307,592.89,591.09,0.33835794]
[1742000481554,0.31036546,592.88,591.1,0.30590153]
[1742000481854,0.33734208,592.87,591.12,0.33834077]
[1742000482055,0.31036546,592.86,591.13,0.30590153]
[1742000482256,0.33735346,592.85,591.15,0.3383236]
[1742000482447,0.31036546,592.84,591.16,0.30590153]
[1742000483150,0.31036546,592.84,591.03,3.23]
[1742000483151,0.33736484,592.83,591.18,0.33830643]
[1742000483354,0.64777344,592.83,591.18,0.33830643]
[1742000483556,0.3104086,592.82,591.19,0.30601445]
[1742000483756,0.3104086,592.81,591.2,0.33829499]
[1742000484052,0.3104086,592.8,591.21,0.30601445]
[1742000484258,0.3373876,592.79,591.22,0.33828354]
[1742000484457,0.3104086,592.78,591.23,0.30601445]
[1742000484857,0.33739899,592.77,591.24,0.3382721]
[1742000485059,0.3104086,592.76,591.25,0.30601445]
[1742000485257,0.33741037,592.75,591.26,0.33826066]
[1742000485656,0.3104086,592.74,591.27,0.30601445]
[1742000485857,0.3104086,592.74,591.28,0.33824922]
[1742000486157,0.33742176,592.73,591.29,0.30601445]
[1742000486352,0.33742176,592.73,591.3,0.33823778]
[1742000486558,0.3104086,592.72,591.31,0.30601445]
[1742000486759,0.33743314,592.71,591.32,0.33822634]
[1742000487059,0.3104086,592.7,591.32,0.33822634]
[1742000487252,0.33744453,592.69,591.32,0.33822634]
[1742000490057,0.33744453,592.69,591.33,0.7]
[1742000490260,0.29402322,592.68,591.34,0.3382149]
[1742000490862,0.63147344,592.68,591.34,0.3382149]
[1742000493064,0.29403564,592.67,591.34,0.3382149]
[1742000493266,0.63149155,592.67,591.34,0.3382149]
[1742000493563,0.64785587,592.66,591.34,0.3382149]
[1742000494063,0.31039426,592.65,591.34,0.3382149]
[1742000494663,0.33746161,592.66,591.34,0.3382149]
[1742000494862,0.31039703,592.64,591.34,0.3382149]
[1742000495063,0.31039703,592.63,591.34,0.3382149]
[1742000495263,0.31039703,592.65,591.34,0.3382149]
[1742000495663,0.31039703,592.65,591.35,1.35709033]
[1742000495864,0.31039703,592.65,591.36,0.33820346]
[1742000496158,0.29404061,592.64,591.36,0.33820346]
[1742000496358,0.31039703,592.63,591.36,0.33820346]
[1742000496557,0.31039701,592.62,591.36,0.33820346]
[1742000496763,0.31039701,592.63,591.36,0.33820346]
[1742000496963,0.31039701,592.62,591.36,0.33820346]
[1742000497162,0.31039701,592.63,591.36,0.33820346]
[1742000497363,0.31039701,592.62,591.36,0.33820346]
[1742000497565,0.31039701,592.63,591.36,0.33820346]
[1742000497759,0.31039701,592.62,591.36,0.33820346]
[1742000497963,0.31039701,592.63,591.36,0.33820346]
[1742000498262,0.31039701,592.62,591.36,0.33820346]
[1742000498459,0.31039701,592.63,591.36,0.33820346]
[1742000499262,0.6044401,592.62,591.36,0.33820346]
[1742000499463,0.31039701,592.61,591.37,0.467]
[1742000499759,0.31039701,592.61,591.37,0.80519774]
[1742000499959,0.31039701,592.61,591.38,0.33819202]
[1742000500163,0.29404309,592.62,591.38,0.33819202]
[1742000500361,0.3103954,592.61,591.38,0.33819202]
[1742000502158,0.3103954,592.65,591.38,0.33819202]
[1742000502357,0.3103954,592.64,591.38,0.33819202]
[1742000502863,0.3103954,592.64,591.39,0.854]
[1742000504059,0.29403937,592.63,591.39,0.854]
[1742000504258,0.3103954,592.62,591.39,0.854]
[1742000505060,0.3103954,592.61,591.39,0.854]
[1742000505267,0.29404185,592.61,591.39,0.854]
[1742000505466,0.3103954,592.6,591.39,0.854]
[1742000505769,0.31039621,592.59,591.4,0.64445598]
[1742000506067,0.31039621,592.58,591.4,0.33818058]
[1742000506268,0.31039621,592.6,591.4,0.33818058]
[1742000506470,0.31039621,592.59,591.4,1.28918058]
[1742000506763,0.31039621,592.58,591.4,1.28918058]
[1742000506968,0.31039621,592.57,591.4,1.28918058]
[1742000507269,0.31039621,592.56,591.4,1.28918058]
[1742000507564,0.31039621,592.55,591.4,1.28918058]
[1742000507767,0.31040512,592.54,591.4,1.28918058]
[1742000507961,0.31040512,592.6,591.4,1.28918058]
[1742000508165,0.29403315,592.53,591.4,1.28918058]
[1742000508365,0.31040512,592.52,591.4,1.28918058]
[1742000508766,0.31040512,592.64,591.4,1.28918058]
[1742000509671,0.31040512,592.64,591.4,2.03618058]
[1742000509971,0.29403812,592.63,591.4,2.03618058]
[1742000510170,0.31040512,592.62,591.4,2.03618058]
[1742000511266,0.29404061,592.61,591.4,2.03618058]
[1742000511669,0.31038868,592.6,591.4,2.03618058]
[1742000512072,0.29404061,592.61,591.4,2.03618058]
[1742000514072,0.3374673,592.65,591.4,2.03618058]
[1742000514274,0.29403812,592.6,591.4,2.03618058]
[1742000515268,0.29403812,592.6,591.4,3.01818058]
[1742000516972,0.3374673,592.65,591.4,3.01818058]
[1742000517172,0.29403812,592.59,591.4,3.01818058]
[1742000518767,0.29403812,592.59,591.4,3.48418058]
[1742000520172,0.3374673,592.65,591.4,3.48418058]
[1742000520370,0.29403812,592.58,591.4,3.48418058]
[1742000520570,0.3374673,592.65,591.4,3.48418058]
[1742000521574,0.2939214,592.64,591.4,3.48418058]
[1742000521775,0.31037749,592.63,591.4,3.48418058]
[1742000523375,0.31037749,592.62,591.4,3.48418058]
[1742000523574,0.31037749,592.64,591.4,3.48418058]
[1742000523775,0.29402819,592.62,591.4,3.48418058]
[1742000523975,0.31038111,592.61,591.4,3.48418058]
[1742000527078,0.29402819,592.62,591.4,3.48418058]
[1742000529074,0.3374673,592.65,591.4,3.48418058]
[1742000529272,0.29400335,592.61,591.4,3.48418058]
[1742000531481,0.29400335,592.61,591.4,4.50518058]
[1742000531878,0.3374673,592.65,591.4,4.50518058]
[1742000532278,0.29389906,592.64,591.4,4.50518058]
[1742000534684,0.29389906,592.64,591.4,5.47418058]
[1742000535080,0.3374673,592.65,591.4,5.47418058]
[1742000535282,0.29400335,592.63,591.4,5.47418058]
[1742000538183,0.29403315,592.62,591.4,5.47418058]
[1742000540983,0.3374673,592.65,591.4,5.47418058]
[1742000541185,0.29403564,592.61,591.4,5.47418058]
[1742000542489,0.31039093,592.6,591.4,5.47418058]
[1742000543284,0.29403564,592.61,591.4,5.47418058]
[1742000546989,0.3374673,592.65,591.4,5.47418058]
[1742000547182,0.29403067,592.6,591.4,5.47418058]
[1742000549593,0.29403067,592.6,591.4,6.54718058]
[1742000550091,0.3374673,592.65,591.4,6.54718058]
[1742000550289,0.29403067,592.59,591.4,6.54718058]
[1742000552995,0.3374673,592.65,591.4,6.54718058]
[1742000553197,0.29401577,592.58,591.4,6.54718058]
[1742000553396,0.31039126,592.64,591.4,6.54718058]
[1742000553594,0.3374673,592.65,591.4,6.54718058]
[1742000553795,0.31038603,592.64,591.4,6.54718058]
[1742000555000,0.29401577,592.63,591.4,6.54718058]
[1742000555502,0.31039103,592.62,591.4,6.54718058]
[1742000556201,0.29401825,592.61,591.4,6.54718058]
[1742000556597,0.31039103,592.6,591.4,6.54718058]
[1742000558297,0.31039103,592.6,591.41,0.30570335]
[1742000558504,0.31039103,592.6,591.42,0.33816915]
[1742000558701,0.31039103,592.6,591.43,0.30570335]
[1742000559103,0.31039103,592.64,591.43,0.30570335]
[1742000559303,0.29401825,592.59,591.43,0.30570335]
[1742000559502,0.31039103,592.58,591.43,0.30570335]
[1742000560705,0.31039103,592.58,591.44,0.33815771]
[1742000561111,0.31039103,592.58,591.45,0.987]
[1742000561510,0.31039103,592.58,591.45,1.32515199]
[1742000562012,0.31039103,592.58,591.46,1.16848031]
[1742000562211,0.31039103,592.64,591.47,0.77148031]
[1742000562408,0.31039103,592.64,591.48,0.30548031]
[1742000562612,0.31039103,592.64,591.48,1.04348031]
[1742000562812,0.31039103,592.64,591.49,0.30548031]
[1742000564113,0.29400583,592.63,591.48,0.738]
[1742000564305,0.31039103,592.62,591.48,0.738]
[1742000568116,0.31039103,592.64,591.48,0.738]
[1742000568316,0.29400831,592.61,591.48,0.738]
[1742000568516,0.31039103,592.6,591.48,0.738]
[1742000570317,0.29400831,592.61,591.48,0.738]
[1742000571015,0.3374673,592.65,591.48,0.738]
[1742000571215,0.29399341,592.6,591.49,1.031]
[1742000573720,0.3374673,592.65,591.49,1.031]
[1742000574020,0.3374673,592.65,591.5,0.30455452]
[1742000574419,2.59344213,593.38,591.5,0.30455452]
[1742000574619,0.31009282,593.37,591.5,0.30455452]
[1742000576023,0.29377749,593.36,591.5,0.30455452]
[1742000576215,0.647162,593.35,591.5,0.30455452]
[1742000576420,0.31009282,593.34,591.5,0.30455452]
[1742000576617,0.31009282,593.34,591.52,0.33811198]
[1742000576816,0.31009282,593.34,591.53,0.30455452]
[1742000577023,0.31009282,593.34,591.55,0.33809483]
[1742000577219,0.31009282,593.34,591.56,0.30455452]
[1742000577523,0.29373781,593.33,591.58,0.33807769]
[1742000577724,0.31009282,593.32,591.59,0.30455452]
[1742000578426,0.31009282,593.32,591.61,0.33806054]
[1742000578723,0.31009282,593.32,591.62,0.30455452]
[1742000578924,0.31009282,593.32,591.64,0.3380434]
[1742000579120,0.31009282,593.32,591.65,0.30455452]
[1742000579327,0.31009282,593.32,591.67,0.33802626]
[1742000579517,0.31009282,593.32,591.68,0.30455452]
[1742000579722,0.31009282,593.32,591.7,0.33800912]
[1742000579918,0.31009282,593.32,591.71,0.30455452]
[1742000580124,0.31009282,593.32,591.73,0.33799198]
[1742000580327,0.31009282,593.34,591.74,0.30455452]
[1742000580524,0.31009282,593.34,591.76,0.33797485]
[1742000580720,0.31009282,593.34,591.77,0.30455452]
[1742000580920,0.31009282,593.34,591.79,0.33795772]
[1742000581119,0.31009282,593.34,591.8,0.30455452]
[1742000581321,0.31009282,593.34,591.82,0.33794059]
[1742000581720,0.31009282,593.34,591.83,0.30455452]
[1742000582024,0.2937279,593.33,591.83,0.30455452]
[1742000582224,0.31009282,593.32,591.85,0.33792346]
[1742000582424,0.33708622,593.32,591.85,0.33792346]
[1742000582620,0.31005268,593.31,591.86,0.30469203]
[1742000582821,0.33709758,593.3,591.87,0.33791204]
[1742000583024,0.31005268,593.29,591.88,0.30469203]
[1742000583223,0.33710895,593.28,591.89,0.33790062]
[1742000583424,0.31005268,593.27,591.9,0.30469203]
[1742000583620,0.33712031,593.26,591.9,0.64258694]
[1742000583820,0.31005268,593.25,591.91,0.30469203]
[1742000584023,0.33713168,593.24,591.91,0.30469203]
[1742000584219,0.31005268,593.23,591.91,0.30469203]
[1742000584525,0.31005268,593.23,591.9,0.33789491]
[1742000586125,0.31005268,593.23,591.91,0.30489912]
[1742000586325,0.29380725,593.22,591.91,0.30489912]
[1742000586625,0.64720141,593.21,591.91,0.30489912]
[1742000586826,0.64720709,593.2,591.91,0.30489912]
[1742000587127,0.3371601,593.19,591.9,0.33789491]
[1742000587328,0.31012819,593.18,591.91,0.30493685]
[1742000587626,0.33717146,593.17,591.91,0.30493685]
[1742000587829,0.31012819,593.16,591.91,0.30493685]
[1742000588028,0.31012819,593.16,591.91,0.77093685]
[1742000588323,0.31012819,593.16,591.92,0.30493685]
[1742000589228,0.29378369,593.15,591.92,0.30493685]
[1742000589427,0.31012819,593.14,591.92,0.30493685]
[1742000589822,0.31011266,593.13,591.93,0.30488703]
[1742000590027,0.31011266,593.14,591.93,0.30488703]
[1742000590227,0.31011266,593.13,591.93,0.30488703]
[1742000590627,0.31011266,593.12,591.93,0.30488703]
[1742000590828,0.31011266,593.14,591.93,0.30488703]
[1742000591029,0.31011266,593.13,591.93,0.30488703]
[1742000591227,0.31011266,593.14,591.92,0.33788349]
[1742000591429,0.31011266,593.13,591.92,0.33788349]
[1742000591624,0.31011266,593.14,591.92,0.33788349]
[1742000591828,0.31011266,593.13,591.92,0.33788349]
[1742000592029,0.31011266,593.12,591.92,0.33788349]
[1742000592225,0.31011266,593.11,591.92,0.33788349]
[1742000592430,0.31011266,593.1,591.92,0.33788349]
[1742000592629,0.31011266,593.09,591.92,0.33788349]
[1742000592829,0.31011266,593.08,591.92,0.33788349]
[1742000593029,0.31011266,593.14,591.92,0.33788349]
[1742000593328,0.29378369,593.15,591.92,0.33788349]
[1742000593525,0.31013493,593.14,591.92,0.33788349]
[1742000597025,0.29378369,593.15,591.92,0.33788349]
[1742000597226,0.31014545,593.14,591.92,0.33788349]
[1742000597630,0.31014545,593.14,591.92,1.19288349]
[1742000598228,0.29378741,593.13,591.92,1.19288349]
[1742000598634,0.31014545,593.12,591.92,1.19288349]
[1742000598930,0.29378741,593.13,591.92,1.19288349]
[1742000599131,0.31013308,593.12,591.92,1.19288349]
[1742000601937,0.31013308,593.11,591.92,1.19288349]
[1742000602233,0.31013308,593.1,591.92,1.19288349]
[1742000602736,0.29378741,593.13,591.92,1.19288349]
[1742000602737,0.31013308,593.09,591.92,1.19288349]
[1742000602936,0.33722263,593.08,591.92,1.19288349]
[1742000603133,0.64735571,593.08,591.92,1.19288349]
[1742000603335,0.31013308,593.07,591.92,1.19288349]
[1742000603535,0.337234,593.06,591.92,1.19288349]
[1742000603734,0.31013308,593.05,591.92,1.19288349]
[1742000603942,0.33724537,593.04,591.92,1.19288349]
[1742000604239,0.31013308,593.03,591.92,1.19288349]
[1742000604540,0.64752509,593.02,591.92,1.19288349]
[1742000604839,0.64753078,593.01,591.92,1.19288349]
[1742000605042,0.64753646,593.0,591.92,1.19288349]
[1742000605251,0.64754215,592.99,591.92,1.19288349]
[1742000605443,0.64754784,592.98,591.92,1.19288349]
[1742000605647,0.64755353,592.97,591.92,1.19288349]
[1742000605837,0.64755921,592.96,591.92,1.19288349]
[1742000606042,0.29385315,593.04,591.92,1.19288349]
[1742000606043,0.6475649,592.95,591.92,1.19288349]
[1742000606237,0.33730225,592.94,591.92,1.19288349]
[1742000607042,0.31019472,592.93,591.92,1.19288349]
[1742000608047,0.31015758,592.92,591.92,1.19288349]
[1742000608247,0.31015758,592.91,591.92,1.19288349]
[1742000608441,0.31015758,592.9,591.92,1.19288349]
[1742000608642,0.31015758,592.93,591.92,0.33788349]
[1742000608843,0.31015758,592.92,591.92,0.33788349]
[1742000609042,0.33730225,592.94,591.92,0.33788349]
[1742000609549,0.31015439,592.93,591.92,0.33788349]
[1742000610352,0.29381717,592.92,591.92,0.33788349]
[1742000613158,0.33730225,592.94,591.92,0.33788349]
[1742000613358,0.29381717,592.91,591.92,0.33788349]
[1742000615961,0.33730225,592.94,591.92,0.33788349]
[1742000616363,0.29382214,592.9,591.92,0.33788349]
[1742000619562,0.29382214,592.9,591.93,0.30498121]
[1742000619763,0.29382214,592.9,591.94,0.33787208]
[1742000619955,0.29382214,592.9,591.95,0.30492411]
[1742000620856,0.29382214,592.9,591.94,0.33787208]
[1742000621061,0.29382214,592.9,591.95,0.30490793]
[1742000621961,0.33730225,592.94,591.94,0.33787208]
[1742000622763,0.29379113,592.95,591.94,0.33787208]
[1742000622764,0.29379113,592.95,591.95,0.30486884]
[1742000622960,0.29379113,592.95,591.96,0.33786066]
[1742000624059,0.29379113,592.95,591.97,0.3048556]
[1742000624666,0.29379113,592.95,591.98,0.33784925]
[1742000624967,2.55836763,594.01,591.98,0.33784925]
[1742000625167,0.33675135,593.91,591.98,0.33784925]
[1742000625368,0.29363991,593.01,591.98,0.33784925]
[1742000625561,0.33675135,593.91,591.98,0.33784925]
[1742000625763,0.31005812,593.9,591.98,0.33784925]
[1742000625965,0.33676837,593.88,591.98,0.33784925]
[1742000626264,0.31005812,593.87,591.99,0.30480757]
[1742000626468,0.33678538,593.85,592.0,0.33783783]
[1742000626668,0.31005812,593.84,592.0,0.33783783]
[1742000626867,0.33680239,593.82,592.0,0.33783783]
[1742000627167,0.31005812,593.81,592.01,0.3047937]
[1742000627373,0.33681941,593.79,592.01,0.3047937]
[1742000627567,0.31005812,593.78,592.02,0.939]
[1742000627863,0.33683643,593.76,592.03,0.3047937]
[1742000628071,0.33683643,593.76,592.02,0.939]
[1742000628072,0.31005812,593.75,592.02,0.939]
[1742000628371,0.33685345,593.73,592.02,0.939]
[1742000628574,0.31005812,593.72,592.02,0.939]
[1742000628766,0.31005812,593.71,592.02,0.939]
[1742000628964,0.31005812,593.7,592.02,0.939]
[1742000629163,0.31005812,593.69,592.02,0.939]
[1742000629369,0.33688749,593.67,592.02,0.939]
[1742000629567,0.31005812,593.66,592.02,0.939]
[1742000629764,0.31005812,593.65,592.02,0.939]
[1742000629967,0.31005812,593.66,592.02,0.939]
[1742000630169,0.60372261,593.65,592.02,0.939]
[1742000630369,0.64694881,593.64,592.02,0.939]
[1742000630569,0.33691587,593.62,592.02,0.939]
[1742000630770,0.31004429,593.61,592.02,0.939]
[1742000630971,0.33693289,593.59,592.02,0.939]
[1742000631165,0.31004429,593.58,592.02,0.939]
[1742000631370,0.33694992,593.56,592.02,0.939]
[1742000631669,0.31004429,593.55,592.02,0.939]
[1742000631870,0.33696696,593.53,592.02,0.939]
[1742000632071,0.31005231,593.52,592.03,0.30481739]
[1742000632274,0.33698399,593.5,592.03,0.30481739]
[1742000632772,0.31005231,593.49,592.03,1.047]
[1742000633071,0.33700102,593.47,592.03,2.185]
[1742000633270,0.31005231,593.46,592.03,2.653]
[1742000633470,0.33701238,593.45,592.03,2.653]
[1742000633670,0.31005231,593.44,592.03,2.653]
[1742000633868,0.33702374,593.43,592.03,2.653]
[1742000634068,0.31005231,593.42,592.03,2.653]
[1742000634268,0.3370351,593.41,592.03,2.653]
[1742000634473,0.31005231,593.4,592.03,2.653]
[1742000634671,0.33704646,593.39,592.03,2.653]
[1742000634870,0.31005231,593.38,592.03,2.653]
[1742000635073,0.33705782,593.37,592.03,2.653]
[1742000635372,0.31005231,593.36,592.03,2.653]
[1742000635671,0.33706918,593.35,592.03,2.653]
[1742000635872,0.31005231,593.34,592.03,2.653]
[1742000636067,0.33708054,593.33,592.03,2.653]
[1742000636268,0.31005231,593.32,592.03,2.653]
[1742000636474,0.3370919,593.31,592.03,2.653]
[1742000636676,0.31005231,593.3,592.03,2.653]
[1742000636876,0.33710327,593.29,592.03,3.39]
[1742000637070,0.31005231,593.28,592.03,3.39]
[1742000637271,0.64716126,593.28,592.03,3.39]
[1742000637572,0.31004573,593.27,592.03,3.39]
[1742000639469,0.31004573,593.27,592.03,4.453]
[1742000639665,0.31004573,593.27,592.03,5.253]
[1742000640276,0.2937279,593.26,592.03,5.253]
[1742000640476,0.31004573,593.25,592.03,5.253]
[1742000640974,0.2937279,593.26,592.03,5.253]
[1742000641177,0.3100485,593.25,592.03,5.253]
[1742000641476,0.3100485,593.25,592.04,0.30481434]
[1742000641879,0.6471745,593.25,592.04,0.30481434]
[1742000642079,0.64718018,593.24,592.03,5.253]
[1742000642381,0.64718586,593.23,592.03,5.253]
[1742000642570,0.33714304,593.22,592.03,5.253]
[1742000642775,0.3100661,593.21,592.03,5.253]
[1742000643072,0.3100661,593.21,592.04,0.30484198]
[1742000643478,0.29373533,593.2,592.04,1.09684198]
[1742000643779,0.3100661,593.19,592.05,0.3048243]
[1742000645878,0.3100661,593.19,592.04,0.792]
[1742000647080,0.3100661,593.19,592.05,0.30493056]
[1742000647385,0.3100661,593.19,592.04,1.677]
[1742000648283,0.29373533,593.2,592.04,1.677]
[1742000648482,0.31003557,593.19,592.05,0.30480504]
[1742000649085,0.31003266,593.18,592.06,0.30490005]
[1742000649286,0.29373657,593.18,592.05,0.30490005]
[1742000649489,0.31003266,593.17,592.04,2.731]
[1742000649788,0.31003266,593.17,592.05,0.30491193]
[1742000649987,0.31003249,593.16,592.06,0.30491532]
[1742000650183,0.31003249,593.17,592.05,0.30491532]
[1742000650385,0.31003249,593.16,592.04,2.731]
[1742000650585,0.31003249,593.15,592.05,0.30491367]
[1742000650786,0.31003249,593.17,592.05,0.30491367]
[1742000650984,0.31003249,593.16,592.05,0.30491367]
[1742000651288,0.31003249,593.15,592.05,0.30491367]
[1742000651488,0.29373657,593.18,592.05,0.30491367]
[1742000651890,0.31002682,593.17,592.05,0.30491367]
[1742000652289,0.31002682,593.21,592.05,0.30491367]
[1742000652490,0.29373905,593.16,592.05,0.30491367]
[1742000652686,0.31002682,593.15,592.05,0.30491367]
[1742000653189,0.29373905,593.16,592.04,3.384]
[1742000654290,0.29373905,593.16,592.05,0.30480642]
[1742000654689,0.31005015,593.15,592.04,3.72181501]
[1742000654895,0.31005015,593.15,592.05,0.30486697]
[1742000655294,0.29373905,593.14,592.05,0.673]
[1742000655494,0.3100419,593.13,592.05,0.673]
[1742000655890,0.3100419,593.13,592.05,1.754]
[1742000656094,0.31004254,593.12,592.05,1.754]
[1742000656294,0.31004254,593.13,592.05,1.754]
[1742000656489,0.31004254,593.12,592.05,1.754]
[1742000656690,0.31004254,593.13,592.05,1.754]
[1742000656892,0.31004254,593.12,592.05,1.754]
[1742000657094,0.31004254,593.11,592.05,1.754]
[1742000657295,0.31004254,593.13,592.05,1.754]
[1742000657490,0.29373905,593.14,592.05,2.609]
[1742000657693,0.31005068,593.13,592.05,2.609]
[1742000658191,0.29374773,593.12,592.05,2.609]
[1742000658694,0.31005068,593.11,592.05,2.609]
[1742000659596,0.31005068,593.11,592.06,0.30486618]
[1742000661089,0.31005068,593.11,592.05,2.609]
[1742000661090,0.31004434,593.1,592.07,0.30479123]
[1742000661293,0.31004434,593.09,592.05,2.609]
[1742000661496,0.31004434,593.09,592.06,0.30478293]
[1742000662297,0.29374525,593.1,592.06,0.30478293]
[1742000663702,0.29374525,593.1,592.06,0.77278293]
[1742000663897,0.29374525,593.1,592.06,1.366]
[1742000664102,0.33714304,593.22,592.06,1.366]
[1742000664298,0.31004151,593.21,592.06,1.366]
[1742000664500,0.29373162,593.09,592.06,1.366]
[1742000664699,0.33714304,593.22,592.06,1.366]
[1742000665105,0.31004257,593.21,592.06,1.366]
[1742000666099,0.29373162,593.2,592.06,1.366]
[1742000666305,0.31004257,593.19,592.06,1.366]
[1742000667202,0.31004257,593.18,592.06,1.366]
[1742000667399,0.29373162,593.18,592.06,1.366]
[1742000667596,0.31004257,593.17,592.06,1.366]
[1742000668502,0.31004506,593.16,592.06,1.366]
[1742000668704,0.31004506,593.17,592.06,1.366]
[1742000668907,0.31004506,593.16,592.06,1.366]
[1742000669107,0.31004506,593.17,592.06,1.366]
[1742000669302,0.29373162,593.18,592.06,1.366]
[1742000669303,0.31004506,593.16,592.06,1.366]
[1742000669508,0.31004506,593.15,592.06,1.366]
[1742000669707,0.31004506,593.14,592.06,1.366]
[1742000669907,0.31004506,593.17,592.06,1.366]
[1742000670112,0.29373162,593.18,592.06,1.366]